bitfinex/quotes_ETHUSD_20250801
["timestamp","ask_amount","ask_price","bid_price","bid_amount"]
[1754011873918,3.0,3679.0,3678.2,0.27173]
[1754011874116,3.0,3678.6,3678.2,0.27173]
[1754011874313,2.718373,3678.7,3678.2,0.27173]
[1754011874614,3.0,3678.7,3678.3,4.476]
[1754011874816,3.0,3678.7,3678.4,2.276]
[1754011874817,0.20020978,3678.7,3678.4,2.276]
[1754011875020,3.0,3680.3,3678.5,3.25024478]
[1754011875206,6.58088192,3683.9,3678.6,2.30318425]
[1754011875207,0.817008,3679.9,3678.6,2.30318425]
[1754011875406,0.027168,3679.8,3678.7,6.753]
[1754011875715,3.0,3680.1,3678.7,6.2957]
[1754011875917,3.0,3680.1,3678.8,2.30318277]
[1754011876081,2.71738125,3680.1,3678.9,2.276]
[1754011876281,0.816879,3680.5,3679.0,3.25302749]
[1754011876483,5.6291,3681.6,3679.1,2.2514]
[1754011876681,5.44388881,3681.6,3679.2,0.4301]
[1754011876902,2.71720703,3680.3,3679.3,6.2983]
[1754011877118,10.82803449,3680.9,3679.3,1.8213]
[1754011877291,3.0,3680.5,3678.7,2.2514]
[1754011877491,3.0,3680.1,3678.8,4.477]
[1754011877704,2.71688084,3680.7,3678.9,2.27858203]
[1754011877909,2.71708395,3680.5,3679.0,2.2514]
[1754011878105,3.0,3680.7,3679.4,2.71776862]
[1754011878310,0.816721,3681.2,3679.5,2.82215268]
[1754011878628,2.71643169,3681.3,3679.6,6.7284]
[1754011878797,3.0,3680.7,3679.7,4.477]
[1754011879123,2.71685833,3680.8,3679.7,4.9071]
[1754011879425,11.21883449,3681.5,3679.7,4.477]
[1754011879598,3.0,3681.2,3679.8,2.27857538]
[1754011879794,4.477,3682.4,3679.9,2.92695754]
[1754011879999,2.71576774,3682.2,3680.0,6.7284]
[1754011880216,3.0,3681.6,3680.4,2.71709188]
[1754011880398,3.0,3681.6,3680.5,2.2514]
[1754011880606,3.0,3681.7,3680.5,4.96840501]
[1754011880786,2.71595219,3682.0,3680.8,2.71679401]
[1754011881032,2.71584182,3682.1,3680.9,7.22793635]
[1754011881211,2.71519991,3683.0,3681.1,2.716558]
[1754011881398,2.71569815,3682.3,3681.1,2.716558]
[1754011881721,3.0,3682.5,3681.3,2.71642981]
[1754011881886,2.71541874,3682.7,3681.5,2.71626927]
[1754011882088,0.816313,3683.0,3681.6,6.7284]
[1754011882285,2.71525156,3682.9,3681.7,0.4301]
[1754011882511,0.816313,3683.0,3681.9,2.71598902]
[1754011882695,2.71519214,3683.0,3682.6,0.136]
[1754011883037,3.0,3683.0,3682.6,0.136]
[1754011883238,0.136,3683.2,3682.6,0.136]
[1754011883523,0.136,3683.2,3681.6,2.71616706]
[1754011883524,5.71532529,3682.8,3682.7,4.477]
[1754011883724,3.55,3682.4,3681.0,0.4301]
[1754011883931,3.26581099,3682.2,3681.6,0.136]
[1754011884233,0.55,3682.2,3681.6,0.136]
[1754011884392,0.55,3681.6,3680.9,0.92963635]
[1754011884721,0.55,3682.0,3681.5,0.136]
[1754011884927,2.71526826,3682.9,3681.5,0.136]
[1754011884928,1.8093,3683.4,3681.6,2.2785621]
[1754011885140,2.85114208,3683.1,3681.9,0.136]
[1754011885291,2.7150393,3683.2,3682.6,0.136]
[1754011885490,0.136,3683.2,3682.6,4.612]
[1754011885716,3.0,3683.0,3682.6,4.612]
[1754011885912,0.136,3683.2,3682.6,0.136]
[1754011886124,0.55,3683.0,3682.6,0.136]
[1754011886329,0.55,3682.6,3681.0,0.27509364]
[1754011886628,0.55,3682.3,3681.5,0.4301]
[1754011886817,0.55,3682.6,3681.6,4.475]
[1754011887014,0.55,3683.2,3681.7,2.2514]
[1754011887218,3.0,3683.0,3681.7,1.84846136]
[1754011887421,3.0,3682.8,3681.8,1.33406503]
[1754011887610,3.0,3683.3,3681.9,2.2514]
[1754011887813,3.0,3683.3,3682.0,0.4301]
[1754011888131,3.0,3683.5,3682.2,2.71574761]
[1754011888349,2.71449642,3684.0,3682.8,2.71531486]
[1754011888630,2.71429346,3684.2,3682.8,2.71531486]
[1754011888631,2.71403023,3684.6,3683.0,2.71517784]
[1754011888848,2.40856,3684.5,3682.9,2.2514]
[1754011889132,2.71414612,3684.4,3683.3,2.71494132]
[1754011889438,2.40856,3684.5,3683.3,0.02714956]
[1754011889439,2.01776,3684.5,3683.3,0.02714956]
[1754011889645,5.71414612,3684.4,3683.2,3.1451084]
[1754011889837,3.55,3684.3,3683.3,0.02714956]
[1754011890003,5.71379203,3684.9,3683.3,1.8213]
[1754011890206,0.55,3684.1,3683.3,1.8213]
[1754011890504,2.71429676,3684.2,3683.3,1.8213]
[1754011890814,2.71437821,3684.1,3683.3,1.8213]
[1754011891043,6.2843,3685.0,3683.4,4.9041]
[1754011891241,2.71374591,3685.0,3683.8,2.71452573]
[1754011891407,3.0,3684.9,3683.9,2.27854514]
[1754011891608,0.60334695,3685.4,3684.0,0.4301]
[1754011891932,0.60334695,3685.4,3684.1,4.473]
[1754011892131,3.0,3685.1,3683.5,0.4301]
[1754011892342,0.55,3684.8,3684.1,4.473]
[1754011892550,0.51259587,3685.3,3684.2,0.02714293]
[1754011892758,0.60334695,3685.4,3684.1,6.7244]
[1754011892759,2.7136327,3685.1,3684.1,2.2514]
[1754011893048,3.55,3685.0,3684.3,4.473]
[1754011893261,0.55,3685.1,3684.3,0.94387623]
[1754011893604,3.55,3684.7,3683.4,2.7148485]
[1754011893712,0.55,3684.6,3683.5,4.473]
[1754011893918,0.55,3684.4,3683.5,4.473]
[1754011894118,3.55,3684.3,3683.6,2.2514]
[1754011894320,0.55,3684.3,3683.6,2.2514]
[1754011894519,0.60334695,3685.4,3683.7,0.45724661]
[1754011894713,3.0,3685.1,3683.8,4.53588819]
[1754011895036,0.55,3685.0,3683.9,2.2514]
[1754011895234,0.60334695,3685.4,3682.8,0.27153149]
[1754011895235,3.0,3684.9,3683.4,0.4301]
[1754011895453,3.0,3684.9,3683.5,4.472]
[1754011895454,0.55,3684.2,3683.5,4.472]
[1754011895780,0.55,3684.5,3683.6,2.27854735]
[1754011895919,0.55,3684.8,3683.7,2.7146055]
[1754011896260,2.7142722,3684.3,3683.8,2.2514]
[1754011896414,2.7142722,3684.3,3683.6,0.136]
[1754011896415,2.71456326,3683.9,3683.6,0.136]
[1754011896617,3.26446273,3684.0,3683.6,0.136]
[1754011896844,0.55,3683.8,3683.6,0.136]
[1754011897043,0.55,3683.7,3683.6,0.136]
[1754011897248,0.55,3684.2,3683.6,1.8213]
[1754011897447,3.55,3684.0,3683.6,1.9573]
[1754011897648,3.55,3684.0,3683.8,0.136]
[1754011898014,0.55,3683.6,3683.2,4.471]
[1754011898255,0.55,3683.8,3683.5,0.136]
[1754011898419,3.55,3683.8,3683.5,0.136]
[1754011898616,0.55,3683.9,3683.5,0.136]
[1754011898821,0.55,3683.8,3683.6,1.8213]
[1754011899029,0.55,3683.9,3683.6,1.8213]
[1754011899252,0.55,3683.7,3683.5,0.136]
[1754011899619,3.55,3683.9,3683.5,0.136]
[1754011899840,0.55,3683.9,3683.5,0.136]
[1754011900431,1.8093,3684.8,3683.6,2.27854735]
[1754011900774,0.55,3684.5,3683.8,0.136]
[1754011900936,0.55,3684.3,3683.7,0.22785474]
[1754011901133,0.55,3684.3,3684.0,0.136]
[1754011901336,5.07334695,3685.4,3684.2,0.136]
[1754011901337,2.84978578,3684.9,3684.2,0.136]
[1754011901556,0.55,3684.7,3684.2,0.136]
[1754011901748,1.8093,3684.6,3683.8,4.47]
[1754011901950,0.55,3684.2,3683.8,0.136]
[1754011902145,6.2645145,3683.9,3683.8,0.136]
[1754011902355,0.55,3683.8,3683.5,0.136]
[1754011902578,0.55,3683.8,3683.6,4.96613496]
[1754011902890,3.0,3685.3,3684.1,2.71431515]
[1754011903040,3.0,3685.0,3684.2,2.2514]
[1754011903387,3.52879593,3685.9,3685.2,0.136]
[1754011903551,3.10215583,3685.8,3685.3,0.136]
[1754011903883,0.25302619,3685.7,3685.0,1.8213]
[1754011904177,4.469,3686.3,3685.1,0.97326734]
[1754011904178,0.25302619,3685.6,3685.1,0.97326734]
[1754011904335,1.8093,3686.4,3685.2,2.2514]
[1754011904336,0.25302619,3685.5,3685.2,2.2514]
[1754011904535,1.8093,3686.4,3685.5,0.136]
[1754011904536,0.136,3686.1,3685.5,0.136]
[1754011904733,0.25308481,3686.0,3685.6,0.136]
[1754011905145,0.25308481,3686.0,3685.7,2.2514]
[1754011905345,0.25306976,3685.9,3685.8,4.99164634]
[1754011905595,0.25312063,3685.9,3685.8,2.2514]
[1754011905884,0.25311606,3685.9,3685.8,2.3874]
[1754011906106,0.136,3686.7,3685.9,2.71301905]
[1754011906261,0.25311575,3686.6,3686.0,0.02712967]
[1754011906449,0.25311575,3686.5,3686.3,0.136]
[1754011906654,0.25311575,3686.4,3686.3,0.136]
[1754011907065,0.25311575,3686.4,3686.3,2.08922262]
[1754011907348,0.25327205,3686.4,3686.3,1.35531706]
[1754011907553,0.25327205,3686.4,3686.1,3.8470909]
[1754011907748,0.55,3686.2,3685.8,0.9649873]
[1754011907985,0.55,3686.0,3685.9,0.25124093]
[1754011908249,0.80327205,3686.0,3685.9,4.54234242]
[1754011908760,0.80327205,3686.0,3685.9,0.07534242]
[1754011908948,3.80327205,3686.0,3685.9,0.07534242]
[1754011909352,3.80327205,3686.0,3685.9,2.78838401]
[1754011909573,3.80327205,3686.0,3685.9,5.11188401]
[1754011909888,3.80327205,3686.0,3685.9,5.03654159]
[1754011910556,3.80327205,3686.0,3685.9,2.3235]
[1754011910883,3.80327205,3686.0,3685.9,1.8947]
[1754011911095,3.80327205,3686.0,3685.9,4.466]
[1754011911286,0.55,3685.8,3685.6,1.8947]
[1754011911484,0.55,3685.6,3685.3,0.4288]
[1754011911707,0.55,3685.4,3684.8,0.4288]
[1754011911855,0.55,3685.2,3684.6,4.466]
[1754011912189,0.55,3685.0,3684.7,2.71387095]
[1754011912407,0.4505,3685.7,3684.7,1.8947]
[1754011912408,0.55,3684.8,3684.7,1.8947]
[1754011912613,0.80327205,3684.8,3684.5,0.4288]
[1754011912802,0.25327205,3684.7,3684.2,2.71426677]
[1754011912996,4.848,3685.3,3684.2,3.68097345]
[1754011913199,2.9944872,3685.2,3684.3,4.466]
[1754011913399,0.2537467,3685.1,3684.4,0.45594146]
[1754011913603,0.25369541,3685.0,3684.4,3.14288037]
[1754011913817,0.25369541,3684.9,3684.6,2.71396735]
[1754011914014,0.25369541,3684.8,3684.7,0.4288]
[1754011914326,0.25369541,3684.8,3684.7,2.71392514]
[1754011914503,0.25369541,3684.8,3684.7,4.9228989]
[1754011915079,0.55,3686.0,3685.1,2.71359129]
[1754011915297,1.848,3686.1,3685.2,4.465]
[1754011915485,1.848,3686.1,3685.2,6.5602585]
[1754011915683,1.848,3686.1,3685.2,3.84672294]
[1754011915993,3.26274587,3686.4,3685.3,2.74059956]
[1754011915994,3.26273498,3686.4,3685.3,2.74059956]
[1754011916190,3.26273498,3686.4,3685.4,2.71340176]
[1754011916394,1.848,3686.5,3685.5,2.74046493]
[1754011916609,3.16305365,3686.6,3685.6,2.71326242]
[1754011916919,2.71262262,3686.5,3685.7,4.465]
[1754011917097,0.4505,3686.6,3685.7,5.15024133]
[1754011917295,1.848,3686.8,3686.0,2.71295861]
[1754011917478,3.16265886,3687.1,3685.8,4.60781519]
[1754011917679,1.848,3687.0,3685.8,1.8947]
[1754011918034,0.55,3686.7,3685.9,4.464]
[1754011918317,2.33240658,3686.6,3685.1,2.71356414]
[1754011918647,2.71275995,3686.3,3685.2,4.464]
[1754011918922,1.848,3686.2,3685.2,7.17754305]
[1754011919516,0.4505,3686.1,3685.3,4.464]
[1754011920080,0.4505,3686.1,3685.3,7.177468]
[1754011920285,0.4505,3686.1,3685.3,4.464]
[1754011920680,1.848,3686.2,3685.6,2.71319621]
[1754011920882,1.848,3686.2,3685.4,2.72694354]
[1754011920883,1.848,3686.2,3685.3,4.464]
[1754011921121,4.56083115,3686.2,3685.3,3.48572971]
[1754011921423,9.01873449,3687.0,3685.4,0.01353314]
[1754011921720,1.848,3687.4,3685.7,3.0]
[1754011921892,1.848,3687.8,3685.9,3.0]
[1754011922228,6.311,3688.3,3687.5,2.71180936]
[1754011922436,1.848,3688.3,3687.4,5.8302639]
[1754011922722,1.848,3688.3,3687.7,0.1352]
[1754011922723,0.1352,3688.3,3687.7,0.1352]
[1754011922893,1.848,3688.7,3687.4,3.1183371]
[1754011923099,2.71126266,3688.4,3687.4,1.81472842]
[1754011923315,1.848,3688.3,3687.6,2.7117195]
[1754011923624,1.848,3688.3,3687.5,4.462]
[1754011923796,0.1848,3688.2,3687.1,2.71210363]
[1754011923987,0.55,3687.1,3686.0,2.71294766]
[1754011924186,9.01873449,3687.2,3686.0,2.71294766]
[1754011924187,1.848,3687.4,3686.0,2.71295579]
[1754011924503,1.848,3687.4,3685.8,4.8908]
[1754011924504,2.71245287,3686.7,3686.6,0.136]
[1754011924686,2.71260651,3686.5,3685.9,4.462]
[1754011925019,2.71260651,3686.5,3685.4,4.8947]
[1754011925020,2.71282079,3686.2,3685.8,0.136]
[1754011925227,2.71304459,3685.9,3684.9,4.60846501]
[1754011925531,1.88191117,3686.1,3684.8,0.4288]
[1754011925829,0.136,3685.8,3685.3,0.136]
[1754011926422,4.69713368,3685.8,3685.3,0.136]
[1754011926718,3.16082117,3685.7,3685.3,0.136]
[1754011926920,2.71330526,3685.6,3685.3,0.136]
[1754011927110,0.44760618,3685.7,3685.3,0.136]
[1754011927324,0.136,3685.8,3685.3,0.136]
[1754011927836,4.984,3686.4,3685.7,0.136]
[1754011927989,5.01790842,3686.4,3685.7,0.136]
[1754011928192,0.136,3686.1,3685.6,0.136]
[1754011928497,0.136,3686.3,3685.8,0.136]
[1754011928694,2.71266654,3686.5,3686.0,0.136]
[1754011928894,4.56066654,3686.5,3686.2,0.136]
[1754011929321,0.136,3686.7,3686.2,0.136]
[1754011929619,1.848,3686.7,3686.2,0.136]
[1754011929826,3.0,3686.6,3686.2,0.136]
[1754011930534,2.71317633,3685.8,3685.5,0.136]
[1754011930698,0.55,3686.4,3685.3,0.136]
[1754011930699,2.47763285,3686.4,3685.3,0.136]
[1754011930882,2.71324739,3685.7,3684.9,4.461]
[1754011931089,4.56124739,3685.7,3685.2,0.136]
[1754011931314,1.848,3685.7,3685.2,0.136]
[1754011931621,2.71348329,3685.3,3685.2,0.136]
[1754011931828,0.136,3685.4,3684.9,0.136]
[1754011932026,1.848,3685.3,3684.9,0.136]
[1754011932190,2.2985,3685.3,3684.9,0.136]
[1754011932595,5.01202193,3685.3,3684.9,0.136]
[1754011932892,0.136,3685.4,3684.9,0.136]
[1754011933112,1.848,3685.3,3684.9,0.136]
[1754011933318,5.04595253,3685.2,3684.3,4.461]
[1754011933492,0.136,3685.2,3684.7,0.136]
[1754011933931,1.848,3685.6,3684.8,0.02713851]
[1754011934116,2.71348329,3685.3,3684.9,0.136]
[1754011934492,1.848,3685.2,3684.9,0.136]
[1754011935016,0.136,3685.4,3684.9,0.136]
[1754011935338,0.136,3685.4,3685.1,0.55]
[1754011935548,0.136,3685.4,3685.3,2.71348329]
[1754011935725,0.136,3686.4,3685.8,2.7131011]
[1754011935899,7.69646017,3686.7,3686.1,0.136]
[1754011936098,1.984,3686.7,3686.1,0.136]
[1754011936925,2.71275098,3686.3,3685.4,4.461]
[1754011937138,1.9848,3686.2,3685.8,0.136]
[1754011937342,0.136,3686.4,3685.8,0.136]
[1754011938194,0.444,3686.7,3685.6,1.8321]
[1754011938409,0.136,3686.7,3686.1,0.136]
[1754011938836,3.0,3686.6,3686.1,0.136]
[1754011939151,0.136,3686.4,3685.8,0.136]
[1754011939329,4.46,3686.9,3685.9,0.02713041]
[1754011939492,0.136,3686.7,3686.1,0.136]
[1754011940605,3.0,3686.6,3686.1,0.136]
[1754011940820,2.7126748,3686.4,3685.5,2.71326351]
[1754011941024,2.4288,3686.3,3685.8,0.136]
[1754011941208,3.0,3686.1,3685.8,0.136]
[1754011941408,2.71304159,3685.9,3685.8,0.136]
[1754011941606,2.71321584,3685.7,3684.5,2.7140663]
[1754011941830,2.46268102,3685.6,3684.5,1.18422495]
[1754011942132,0.136,3685.4,3684.9,0.136]
[1754011942333,4.46,3685.8,3684.9,2.2973]
[1754011942632,3.0,3685.8,3685.3,0.136]
[1754011942834,2.71353903,3685.3,3684.3,7.17416187]
[1754011943000,2.1208,3685.4,3684.8,0.136]
[1754011943200,5.1208,3685.4,3684.8,0.136]
[1754011943609,4.83421782,3685.4,3684.8,0.136]
[1754011943906,2.1208,3685.4,3684.8,0.136]
[1754011944294,2.1208,3685.4,3684.8,2.84983849]
[1754011944494,2.1208,3685.4,3684.8,0.136]
[1754011944729,3.1575437,3685.3,3684.8,0.136]
[1754011944931,3.97183437,3685.3,3684.4,2.71414096]
[1754011945108,3.97183437,3685.3,3684.2,11.12282185]
[1754011945109,0.136,3685.1,3684.6,0.136]
[1754011945309,0.136,3685.1,3684.6,2.84995096]
[1754011945511,0.136,3685.6,3685.0,2.84969724]
[1754011945841,0.136,3685.6,3685.0,0.136]
[1754011946023,2.71160217,3687.9,3685.0,0.136]
[1754011946024,3.15653424,3686.6,3685.6,2.71320758]
[1754011946262,0.136,3686.3,3685.7,2.71317808]
[1754011946424,0.136,3686.3,3685.8,2.71311519]
[1754011946624,0.136,3686.3,3685.8,0.136]
[1754011947202,5.4288,3686.2,3685.8,0.136]
[1754011947402,6.01268102,3686.1,3685.8,0.136]
[1754011947623,2.4288,3686.0,3684.8,2.2973]
[1754011947810,0.136,3685.8,3685.3,0.136]
[1754011948015,2.4288,3685.7,3685.3,0.136]
[1754011948240,0.55,3685.4,3684.6,4.459]
[1754011948427,0.136,3685.4,3684.9,0.136]
[1754011948617,0.136,3685.4,3684.9,2.84972411]
[1754011948818,2.1208,3685.4,3684.9,0.136]
[1754011949045,3.136,3685.4,3684.9,0.136]
[1754011949253,0.136,3685.4,3685.0,2.9986885]
[1754011949425,0.55,3685.6,3685.2,0.136]
[1754011949736,0.55,3686.1,3685.3,0.02713483]
[1754011949900,0.136,3686.4,3686.0,2.71293286]
[1754011950315,0.444,3686.9,3685.7,1.8321]
[1754011950546,0.136,3686.0,3685.5,0.136]
[1754011950713,0.55,3685.9,3685.4,0.136]
[1754011950910,0.55,3685.7,3685.4,0.136]
[1754011951140,0.55,3685.7,3685.4,2.84939118]
[1754011951336,0.55,3685.9,3685.4,0.136]
[1754011951543,0.55,3686.0,3685.6,0.136]
[1754011951739,2.5348,3685.8,3685.1,4.459]
[1754011951962,0.686,3685.6,3685.1,0.136]
[1754011952253,0.686,3685.4,3684.9,0.136]
[1754011952746,0.55,3685.5,3685.0,2.7137042]
[1754011952954,2.6708,3685.5,3684.9,0.136]
[1754011953253,1.9848,3685.4,3684.9,0.136]
[1754011953459,0.136,3685.5,3685.4,2.71340967]
[1754011953664,3.0,3685.9,3684.4,0.4652]
[1754011953811,3.55,3685.7,3685.1,2.71362833]
[1754011954012,3.55,3685.7,3685.2,2.71355693]
[1754011954217,0.58,3686.0,3685.5,0.136]
[1754011954527,0.55,3685.9,3685.5,0.136]
[1754011954915,0.55,3685.7,3685.5,0.136]
[1754011955149,3.55,3685.5,3684.9,2.71376398]
[1754011955357,3.55,3685.5,3685.1,0.136]
[1754011955521,0.55,3685.3,3684.2,6.66282185]
[1754011955716,3.0,3685.3,3684.7,2.84989949]
[1754011955935,0.55,3685.2,3684.7,0.136]
[1754011956135,0.55,3685.2,3684.7,2.84991135]
[1754011956329,0.136,3685.4,3684.7,0.136]
[1754011956531,0.686,3685.6,3685.1,0.136]
[1754011956849,3.55,3685.4,3685.1,0.136]
[1754011957052,0.136,3685.6,3685.1,0.136]
[1754011957253,0.55,3685.5,3685.1,0.136]
[1754011957419,0.55,3685.3,3685.1,0.136]
[1754011959131,0.136,3685.6,3685.3,2.71348329]
[1754011959362,0.136,3685.6,3685.2,5.01080755]
[1754011959565,3.58,3685.6,3685.1,0.136]
[1754011959728,3.55,3685.4,3684.8,7.17083085]
[1754011959927,0.55,3685.8,3684.8,8.15932672]
[1754011960153,6.26312331,3685.8,3684.8,8.15932043]
[1754011960340,2.71305212,3685.9,3685.0,2.71368965]
[1754011960543,2.71317899,3685.8,3684.8,5.44548128]
[1754011960746,2.71306666,3685.9,3685.0,2.71368272]
[1754011961148,0.444,3686.0,3685.0,1.08730774]
[1754011961322,3.0,3686.1,3685.0,1.08730774]
[1754011961527,2.71324337,3685.7,3685.1,4.457]
[1754011961862,0.444,3686.0,3684.5,6.2891]
[1754011961863,0.47788102,3685.6,3684.5,6.2891]
[1754011962162,0.47788102,3685.6,3684.5,4.457]
[1754011962163,2.71354765,3685.3,3684.5,4.457]
[1754011962360,2.71354765,3685.3,3684.4,0.14185021]
[1754011962361,3.55,3685.1,3684.4,0.14185021]
[1754011962536,0.55,3685.4,3684.5,2.71404781]
[1754011962723,3.55,3685.4,3684.5,2.38910991]
[1754011962927,0.55,3685.1,3684.5,1.8321]
[1754011963340,0.55,3685.3,3684.5,1.8321]
[1754011963537,2.71355693,3685.2,3684.4,4.457]
[1754011963739,0.55,3684.8,3684.4,4.457]
[1754011964149,0.55,3685.0,3684.4,4.457]
[1754011964355,0.55,3684.8,3684.4,4.457]
[1754011964943,0.55,3684.6,3683.9,1.8321]
[1754011965143,0.55,3684.6,3683.6,0.4652]
[1754011965144,0.55,3684.3,3683.5,1.8321]
[1754011965344,0.55,3684.4,3683.6,0.18321]
[1754011965544,0.55,3684.4,3682.0,2.7159133]
[1754011965545,3.55,3684.0,3683.4,4.456]
[1754011965749,0.55,3684.2,3683.4,7.17088125]
[1754011965944,0.55,3684.2,3683.4,4.456]
[1754011965945,2.7144222,3684.1,3683.4,4.456]
[1754011966167,3.55,3684.3,3683.5,2.71480414]
[1754011966372,0.55,3684.1,3683.4,4.456]
[1754011966672,0.55,3684.1,3683.5,0.71709412]
[1754011966981,3.0,3684.3,3683.5,0.71709412]
[1754011966982,0.55,3684.2,3683.5,0.71709412]
[1754011967335,3.0,3684.7,3683.6,1.9995]
[1754011967534,0.20126142,3685.9,3684.3,2.71415158]
[1754011967535,7.16954971,3685.3,3684.3,2.71415158]
[1754011967846,0.55,3685.1,3684.3,1.9995]
[1754011968181,3.55,3685.0,3684.3,1.9995]
[1754011968337,0.55,3685.0,3684.3,1.9995]
[1754011968540,0.55,3685.1,3684.3,3.23393629]
[1754011968855,3.55,3684.1,3683.4,6.4555]
[1754011969682,3.55,3683.9,3681.9,2.71594311]
[1754011969992,0.136,3683.1,3682.5,0.136]
[1754011970560,0.136,3683.1,3682.6,0.28516062]
[1754011971136,0.136,3683.1,3682.5,0.136]
[1754011971473,0.136,3683.1,3682.5,2.1355]
[1754011971670,2.74905206,3683.1,3682.5,0.136]
[1754011971877,2.74905206,3683.1,3682.1,4.456]
[1754011971878,2.71518161,3683.0,3682.1,4.456]
[1754011972063,0.136,3682.9,3682.3,0.136]
[1754011972375,3.296024,3683.2,3682.1,0.64555]
[1754011972376,0.136,3683.1,3682.6,0.136]
[1754011972889,0.136,3683.1,3682.7,1.9995]
[1754011973050,0.136,3683.1,3682.6,0.136]
[1754011973253,0.136,3683.1,3682.7,1.9995]
[1754011973584,0.136,3683.1,3682.6,0.136]
[1754011973762,0.55,3683.0,3682.6,0.136]
[1754011975286,0.55,3683.0,3682.6,2.1355]
[1754011975649,4.456,3683.4,3682.9,0.136]
[1754011975650,0.136,3683.4,3682.9,0.136]
[1754011975958,0.136,3683.4,3682.9,2.1355]
[1754011976153,0.136,3683.4,3682.9,4.8507271]
[1754011976354,3.0,3683.9,3683.0,1.9995]
[1754011976551,3.136,3683.7,3683.2,0.136]
[1754011976796,0.55,3683.6,3683.2,0.136]
[1754011977479,0.9796,3683.6,3683.2,0.136]
[1754011977855,0.55,3683.4,3683.2,0.136]
[1754011978054,6.40088765,3683.4,3682.9,0.136]
[1754011978350,0.55,3683.2,3682.9,0.136]
[1754011978790,3.55,3683.2,3682.9,0.136]
[1754011978988,0.9796,3683.1,3682.4,4.455]
[1754011979175,0.55,3682.9,3682.6,0.136]
[1754011979675,0.55,3683.0,3682.6,0.136]
[1754011979878,3.55,3683.0,3682.6,0.136]
[1754011980298,0.9796,3683.0,3682.6,0.136]
[1754011980684,0.55,3683.0,3682.6,0.136]
[1754011981032,3.55,3682.6,3680.9,1.9995]
[1754011981167,0.55,3681.3,3680.5,1.9995]
[1754011981367,0.55,3681.3,3680.4,4.455]
[1754011981567,3.55,3680.9,3680.4,4.455]
[1754011981792,3.55,3681.0,3680.4,5.37218037]
[1754011981990,0.55,3681.0,3680.5,1.9995]
[1754011982193,3.0,3681.4,3681.0,2.71664834]
[1754011982400,3.0,3681.4,3680.6,0.4602]
[1754011982631,3.0,3681.4,3680.6,1.9995]
[1754011982632,3.0,3681.1,3680.6,1.9995]
[1754011982830,0.4296,3681.0,3679.8,1.9995]
[1754011982984,3.55,3680.7,3679.9,2.71740618]
[1754011983184,3.55,3680.7,3679.6,4.455]
[1754011983185,0.55,3680.7,3679.6,4.455]
[1754011983415,0.55,3680.8,3680.1,2.71724891]
[1754011983570,0.55,3681.1,3680.4,2.71708688]
[1754011984075,0.55,3681.1,3680.5,2.02667022]
[1754011984318,0.55,3681.1,3679.0,2.71810005]
[1754011984319,3.55,3681.1,3680.0,1.9995]
[1754011984638,0.4296,3682.1,3681.1,2.71651246]
[1754011984814,4.454,3682.0,3681.0,1.9995]
[1754011984974,4.454,3682.0,3680.6,4.48116948]
[1754011984975,0.55,3681.9,3681.1,4.91602928]
[1754011985378,3.55,3681.9,3681.1,4.91602928]
[1754011985731,0.55,3681.5,3680.3,1.9995]
[1754011985876,3.55,3681.3,3680.5,2.71695495]
[1754011986075,3.55,3681.3,3680.3,1.9995]
[1754011986076,0.4296,3682.4,3680.7,2.7168745]
[1754011986387,0.4296,3682.9,3680.8,6.9147]
[1754011986598,9.01873449,3683.5,3680.9,5.2035593]
[1754011986599,0.816621,3682.1,3680.9,5.2035593]
[1754011986898,0.816621,3682.1,3682.0,2.71591526]
[1754011987275,0.816621,3682.1,3682.0,5.17561526]
[1754011987699,4.454,3683.3,3682.8,2.71529081]
[1754011987900,4.454,3683.7,3682.9,1.9995]
[1754011988138,4.454,3683.7,3682.9,4.71472996]
[1754011988341,0.55,3683.6,3682.9,1.9995]
[1754011988507,3.55,3683.6,3682.9,1.9995]
[1754011988709,3.55,3683.6,3682.9,4.71474125]
[1754011988916,0.55,3683.4,3682.3,1.9995]
[1754011989244,0.55,3683.5,3682.9,2.7151788]
[1754011989753,0.55,3683.5,3683.0,2.71517784]
[1754011990062,0.55,3683.5,3682.5,4.454]
[1754011990063,0.55,3683.5,3682.7,1.9995]
[1754011990203,0.9796,3683.5,3682.5,4.454]
[1754011990406,0.55,3683.3,3682.5,7.16954333]
[1754011990632,3.55,3683.3,3682.5,7.16954333]
[1754011990833,0.55,3683.4,3682.6,2.71546282]
[1754011991039,0.55,3683.1,3682.7,0.136]
[1754011991565,0.46348102,3683.0,3682.7,0.136]
[1754011991746,0.55,3682.7,3681.4,4.71585714]
[1754011992070,0.136,3682.8,3681.7,2.71611477]
[1754011992071,3.686,3682.5,3681.7,2.71611477]
[1754011992245,3.55,3682.5,3681.8,2.71603724]
[1754011992409,0.55,3682.1,3681.7,2.71611683]
[1754011992612,0.55,3682.1,3681.8,2.71604667]
[1754011992819,0.55,3682.9,3682.2,2.71571226]